Cogmind - Beta 9 @@@ ROGUE MODE // 2019.10.26 @ 20:01:42 Player: ozkriff Result: Destroyed by D-53 Grenadier with Mini Grenade Launcher Performance ------------- Evolutions (0) 0 Regions Visited (2) 400 Robots Destroyed (10) 50 Value Destroyed (219) 219 Prototype IDs (2) 40 Alien Tech Used (0) 0 Bonus (14) 14 TOTAL SCORE: 723 Bonus ------- Follower Combat Kills 14 Cogmind --------- Core Integrity 0/250 Matter 278/300 Energy 92/100 System Corruption 0% Temperature Cool (0) Location -10/Mines Parts ------- Power (1) Propulsion (2) Utility (2) Small Storage Unit Weapon (2) Inventory (6) Light Ion Engine Light Treads Improved Heat Sink Improved Terrain Scanner Peak State ------------ Power Light Ion Engine Propulsion Light Treads Light Treads Utility Small Storage Unit Improved Terrain Scanner Weapon Medium Laser Medium Laser Inventory Light Ion Engine Light Ion Engine Small Laser [Rating: 8] Favorites ----------- Power Light Ion Engine Engine Light Ion Engine Propulsion Light Treads Treads Light Treads Utility Small Storage Unit Device Sensor Array Storage Small Storage Unit Weapon Medium Laser Energy Gun Medium Laser Energy Cannon Beam Cannon Launcher Rocket Launcher Slashing Weapon Mining Claw Build | -11 -10 -10 ------- Run | Scr Mat Min Slots Evolved . | . . . Power . | . . . Propulsion . | . . . Utility . | . . . Weapon . | . . . Parts Attached 16 | 8 6 2 Power 2 | 1 1 . Engine 2 | 1 1 . Core . | . . . Reactor . | . . . Propulsion 2 | 2 . . Treads 2 | 2 . . Leg . | . . . Wheel . | . . . Hover . | . . . Flight . | . . . Utility 3 | 2 1 . Device 2 | 1 1 . Storage 1 | 1 . . Processor . | . . . Hackware . | . . . Protection . | . . . Artifact . | . . . Weapon 9 | 3 4 2 Energy Gun 5 | 3 1 1 Energy Cannon 1 | . 1 . Ballistic Gun . | . . . Ballistic Cannon . | . . . Launcher 1 | . . 1 Special Weapon . | . . . Impact Weapon . | . . . Slashing Weapon 2 | . 2 . Piercing Weapon . | . . . Special Melee Weapon . | . . . Unidentified Prototypes . | . . . Parts Lost 9 | . 1 8 Power 1 | . . 1 Propulsion 2 | . . 2 Utility 1 | . . 1 Weapon 5 | . 1 4 Highest Loss Streak 7 | . 1 7 Average Slot Usage (%) 96 | . 99 94 Engine 13 | . 14 13 Treads 25 | . 28 23 Device 13 | . 14 13 Storage 14 | . 14 14 Energy Gun 17 | . 22 14 Energy Cannon 8 | . 2 13 Slashing Weapon 1 | . 3 . Naked Turns . | . . . Heaviest Build 13 | 12 13 13 Greatest Support 40 | 40 40 40 Greatest Overweight (x) . | . . . Average Overweight (x) . | . . . Largest Inventory Capacity 6 | 6 6 6 Average Capacity 5 | 5 6 6 Most Carried 6 | 3 6 6 Average Carried 4 | 2 4 5 Final Capacity 6 | . . 6 Final Carried 4 | . . 4 Class Distribution -------------------- 100% | Mutant Dominant Class ---------------- Mutant | -10/Materials Mutant | -10/Mines Resources | -11 -10 -10 ----------- Run | Scr Mat Min Matter Collected 335 | 265 49 21 Remotely . | . . . Salvage Created 374 | 86 163 125 Parts 21 | 7 7 7 Haulers Intercepted . | . . . Recyclers Shooed . | . . . Parts Field Recycled . | . . . Retrieved Matter . | . . . Parts Self-Destructed . | . . . Prevented . | . . . Kills | -11 -10 -10 ------- Run | Scr Mat Min Combat Hostiles Destroyed 4 | . 2 2 Melee 1 | . 1 . Cannons 3 | . 1 2 Classes Destroyed 5 | 2 2 1 Worker 2 | . . 2 Tunneler 1 | 1 . . Recycler 1 | 1 . . Watcher 2 | . 2 . Grunt 4 | . 2 2 Best Kill Streak 2 | 2 2 2 Combat Bots Only 2 | . 1 2 Max Kills in Single Turn 1 | 1 1 1 Gunslinging . | . . . Exploded . | . . . Melee 1 | . 1 . Uniques/NPCs Destroyed . | . . . Combat | -11 -10 -10 -------- Run | Scr Mat Min Damage Taken 989 | . 328 661 Core 253 | . 72 181 Absorbed by Shields . | . . . Core Remaining (%) 100 | 100 . . Volleys Fired 33 | 6 11 16 Largest 2 | 2 2 2 Hottest 110 | 90 110 110 Shots Fired 58 | 9 21 28 Gun 41 | 9 19 13 Cannon 15 | . 2 13 Launcher 2 | . . 2 Special . | . . . Kinetic . | . . . Thermal 56 | 9 21 26 Explosive 2 | . . 2 Electromagnetic . | . . . Robot Hit Streak 8 | 4 7 8 Robot Miss Streak 4 | 1 3 4 Penetration Max . | . . . Secondary Targets . | . . . Shots Hit Robots 41 | 7 21 13 Core Hits 22 | 3 7 12 Critical Hits . | . . . Critical Kills . | . . . Critical Parts Destroyed . | . . . Melee Attacks 13 | . 13 . Impact . | . . . Slashing 13 | . 13 . Piercing . | . . . Sneak Attacks 1 | . 1 . Combat Hostiles . | . . . Follow-up Attacks . | . . . Damage Inflicted 726 | 96 353 277 Guns 278 | 96 122 60 Cannons 125 | . 17 108 Explosions 109 | . . 109 Melee 214 | . 214 . Ramming . | . . . Kinetic . | . . . Thermal 403 | 96 139 168 Explosive 109 | . . 109 Electromagnetic . | . . . Impact . | . . . Slashing 214 | . 214 . Piercing . | . . . Highest Corruption . | . . . Average Corruption . | . . . Corruption Purged . | . . . Overload Shots . | . . . Overflow Damage 32 | . 32 . Projectiles . | . . . Explosions . | . . . Melee 32 | . 32 . Knockbacks . | . . . Impact . | . . . Kinetic . | . . . Secondary . | . . . Self-Inflicted Damage . | . . . Shots . | . . . Rammed . | . . . Targets Rammed . | . . . Kicked . | . . . Crushed . | . . . Highest Temperature 389 | 90 216 389 Average Temperature 97 | 37 61 146 Received Heat Transfer 237 | . 192 45 Effects 2 | . 2 . Interference 2 | . 2 . Siege Activations . | . . . Robots Corrupted . | . . . Combat Hostiles . | . . . Parts Fried . | . . . Impact Corruptions . | . . . Robots Melted . | . . . Combat Hostiles . | . . . Parts Melted 2 | . . 2 Heat Transferred 1050 | 260 407 383 Parts Sabotaged . | . . . Parts Stolen . | . . . Parts Stripped . | . . . Power Chain Reactions . | . . . Missiles Intercepted . | . . . Alert | -11 -10 -10 ------- Run | Scr Mat Min Peak Influence 149 | 10 83 149 Average Influence 62 | 6 31 101 Maximum Alert Level . | . . . Low Security (%) 100 | . . . Level 1 . | . . . Level 2 . | . . . Level 3 . | . . . Level 4 . | . . . Level 5 . | . . . High Security . | . . . Max Security . | . . . Squads Dispatched . | . . . Investigation . | . . . Extermination . | . . . Reinforcement . | . . . Assault . | . . . Garrison . | . . . Intercept . | . . . Construction Impeded . | . . . Haulers Reinforced . | . . . Stealth | -11 -10 -10 --------- Run | Scr Mat Min Distress Signals 2 | . . 2 Communications Jammed . | . . . Distress Signals . | . . . Times Spotted 17 | . 7 10 Peak Tracking Total 3 | . 3 3 Tactical Retreats . | . . . Traps | -11 -10 -10 ------- Run | Scr Mat Min Traps Triggered . | . . . Indirectly . | . . . Trap Hack Attempts . | . . . Triggered . | . . . Disarmed . | . . . Reprogrammed . | . . . Reused . | . . . Traps Extracted . | . . . Installed . | . . . Triggered . | . . . Machines | -11 -10 -10 ---------- Run | Scr Mat Min Machines Disabled 1 | . . 1 Max in Single Turn 1 | . . 1 Machines Sabotaged . | . . . Garrisons Compromised . | . . . Overloaded Fab Kills . | . . . Fab Network Shutdowns . | . . . Hacking | -11 -10 -10 --------- Run | Scr Mat Min Machines Accessed 3 | . 3 . Terminals 2 | . 2 . Fabricators . | . . . Repair Stations . | . . . Recycling Units 1 | . 1 . Scanalyzers . | . . . Garrison Access . | . . . Total Hacks 7 | . 7 . Successful 5 | . 5 . Failed 2 | . 2 . Catastrophic . | . . . Database Lockouts . | . . . Manual . | . . . Terminals 6 | . 6 . Fabricators . | . . . Repair Stations . | . . . Recycling Units 1 | . 1 . Scanalyzers . | . . . Garrison Access . | . . . Terminal Hacks 4 | . 4 . Prototype ID Bank 1 | . 1 . Emergency Access Points 1 | . 1 . Locate Traps 1 | . 1 . Dispatch Records 1 | . 1 . Fabricator Hacks . | . . . Repair Station Hacks . | . . . Recycling Unit Hacks 1 | . 1 . Retrieve Components 1 | . 1 . Scanalyzer . | . . . Garrison Access Hacks . | . . . Unauthorized Hacks . | . . . Terminals . | . . . Fabricators . | . . . Repair Stations . | . . . Recycling Units . | . . . Scanalyzers . | . . . Garrison Access . | . . . Data Cores Recovered . | . . . Used . | . . . Hacking Detections 2 | . 2 . Full Trace Events . | . . . Feedback Events . | . . . Feedback Blocked . | . . . Robot Schematics Acquired . | . . . Robots Built . | . . . Matter . | . . . Time . | . . . Total Robot Build Rating . | . . . Part Schematics Acquired . | . . . Parts Built . | . . . Matter . | . . . Time . | . . . Total Part Build Rating . | . . . Parts Repaired . | . . . Time . | . . . Parts Recycled . | . . . Recycled Matter . | . . . Retrieved Matter . | . . . Retrieved Components 3 | . 3 . Parts Scanalyzed . | . . . Part Schematics Acquired . | . . . Parts Damaged . | . . . Bothacking | -11 -10 -10 ------------ Run | Scr Mat Min Used RIF Installer . | . . . Robots Hacked . | . . . Non-combat . | . . . Combat . | . . . Robot Hacks Applied . | . . . Relay Couplers Released . | . . . Robots Rewired . | . . . Allies Hacked . | . . . Hacks Repelled . | . . . Allies | -11 -10 -10 -------- Run | Scr Mat Min Total Allies 3 | . . 3 Largest Group 3 | . . 3 Highest-Rated Group 40 | . . 40 Highest-Rated Ally 16 | . . 16 Total Orders . | . . . Ally Attacks 19 | . . 19 Total Damage 169 | . . 169 Kills 3 | . . 3 Allies Corrupted . | . . . Allies Melted . | . . . Intel | -11 -10 -10 ------- Run | Scr Mat Min Robot Analysis Total . | . . . Derelict Logs Recovered 1 | . . 1 Drone Launches . | . . . Drone Recoveries . | . . . Exploration | -11 -10 -10 ------------- Run | Scr Mat Min Turns Passed 784 | 111 286 387 Spaces Moved 358 | 52 123 183 Core 1 | 1 . . Treads 357 | 51 123 183 Legs . | . . . Wheels . | . . . Hover . | . . . Flight . | . . . Fastest Speed 50 | 50 160 160 Average Speed 159 | 157 160 160 Slowest Speed 160 | 160 160 160 Overloaded Moves . | . . . Propulsion Burnouts . | . . . Robots Hopped . | . . . Cave-ins Triggered . | . . . Exploration Rate (%) 22 | 3 27 36 Regions Visited 2 Branch Regions 1 Pre-discovered Areas 1 | . . 1 Known Exits Taken . | . . . Unknown Exits Taken 2 | 1 1 . Scrap Searched . | . . . Spaces Dug 1 | . 1 . Terrain Destroyed 25 | . 1 24 Melee 1 | . 1 . Projectile . | . . . AOE 24 | . . 24 Actions | -11 -10 -10 --------- Run | Scr Mat Min Total 482 | 68 165 249 Wait 53 | . 6 47 Move 356 | 51 122 183 Hop . | . . . Pick Up 8 | 3 4 1 Fast Attach 7 | 7 . . Attach 4 | . 2 2 Detach . | . . . Swap 5 | 1 4 . Drop 3 | . 3 . Fire 33 | 6 11 16 Melee 13 | . 13 . Ram . | . . . Kick . | . . . Crush . | . . . Escape Stasis . | . . . Rewire . | . . . Trap . | . . . Miscellaneous . | . . . Route ------- -11/Scrapyard -10/Materials -10/Mines (discovered 1 exit: [*Mat]) History --------- Turn | Location | Event 20 | -11/Scrapyard | Discovered new exit (range 15) 112 | -11/Scrapyard | Entered Materials 332 | -10/Materials | Build established: Mutant 364 | -10/Materials | Discovered new exit (range 16) 398 | -10/Materials | Entered Mines 404 | -10/Mines | Met a Derelict bent on vengeance 405 | -10/Mines | Received a Rocket Launcher from a helpful Derelict 622 | -10/Mines | Learned location of Storage (-9) 664 | -10/Mines | Assisted by bots powering up and referring to "LRC-V3" 702 | -10/Mines | Discovered new exit (range 10) 755 | -10/Mines | Assembled infested the area 760 | -10/Mines | Assisted by a Guerilla fighting off Assembled 778 | -10/Mines | Core integrity fell below 50% 782 | -10/Mines | Core integrity fell below 20% 785 | -10/Mines | Destroyed by D-53 Grenadier with Mini Grenade Launcher Last Messages --------------- 00770_ C-30 ARC bursts open, deploying its payload. 00770_ D-53 Grenadier unfolds itself. 00770_ Med. Laser destroyed. 00772_ The unstable cave ceiling collapses. 00772_ Sensor Array destroyed. 00772_ Lgt. Ion Engine destroyed. 00775_ The unstable cave ceiling collapses. 00776_ Beam Cannon destroyed. 00776_ Destroyed Shock Absorption System. 00777_ The unstable cave ceiling collapses. 00777_ Lgt. Treads destroyed. 00777_ K-01 Serf destroyed. 00778_ Rocket Launcher destroyed. 00778_ U-05 Engineer lays Concrete. 00779_ The unstable cave ceiling collapses. 00779_ U-05 Engineer lays Concrete. 00783_ The unstable cave ceiling collapses. 00783_ Sml. Laser destroyed. 00783_ U-05 Engineer builds a Wall. 00785_ The unstable cave ceiling collapses. Map ----- +----------------------------------------------------+ | ??????## #?????????????????## ##?????? | | ???????##???????????????????## ######## ##????? | | ?????????????????????????????####??# ##???? | | ???????????????????????????????????# === #???? | | ???????????????????????????????????# *%= #???? | | ???????????????????????????????????#####[% #???? | | ?????????????????????????????#?????????# =*##???? | | ?????????????????????????????# ?????##%=%#????? | | ?????????????????????????????# #####%=##???? | | ?????????????????????? ??????# =%=[ ##??? | | ?????????????????????? #??????? """ ####% #??? | | ?????????????????????? ##??????????????#= #??? | | ?????????????????????? #??????????????## #??? | | ?????????????????????? ##??????????????## ##??? | | ??????????????????????# #???????????????## #???? | | ??????????????????????# #????????????????# #???? | | ??????????????????????# ##???????????????# ####? | | ?????????????????###### ##??????????????# #? | | ?????????????#???# ? % #??????????????#### #? | | ?????????????? ??# ###g #?????????????????# #? | | ??????????????? ## ## #?????????????????# #? | | ???????????????? ## ##?####???????????# #? | | ?????????????????#!## # ##??????##### ## | | ?????????????????# ##?????# | | ?????????????????### ####### """ | | ????????????????????# @ % t """ | | ????????????????????# d d u """ | | ????????????????????# # # ###### | | ????????????????????## # #????# | | ?????????????????????## # ##??# #????# < | | ??????????????????????##########??? #????# | | ???????????????????????????????????###???? | | ??????????????????????????????????????????# | | ??????????????????????????????????????????# | | ??????????????????????????????????????????### #### | | ????????????????????????????????????????????? #??? | | ????????????????????????????????????????????? #??? | | ?????????????????????????????????????????????##??? | | ?????????????????????????????????????????????????? | | ?????????????????????????????????????????????????? | | ?????????????????????????????????????????????????? | | ?????????????????????????????????????????????????? | | ?????????????????????????????????????????????????? | | ?????????????????????????????????????????????????? | | ?????????????????????????????????????????????????? | | ?????????????????????????????????????????????????? | | ?????????????????????????????????????????????????? | | ?????????????????????????????????????????????????? | | ?????????????????????????????????????????????????? | | ?????????????????????????????????????????????????? | +----------------------------------------------------+ Best States ------------- Heat Dissipation 25 Energy Generation 10 Energy Capacity 125 Matter Stores 300 Matter Capacity 300 Sight Range 16 Robot Scan Range 10 Terrain Scan Range 16 Terrain Scan Density 10 Evasion (%) 40 Recoil Reduction 2 Item Schematics ----------------- None Robot Schematics ------------------ None Fabricated ------------ Nothing Alien Tech Used ----------------- None Achievements -------------- None Challenges ------------ None Game ------ Seed SupersonicIntegrationSteel Manual? 0 Play Time 00:12:49 Cumulative 8.2 hours Start 2019.10.25 @ 23:01:15 End 2019.10.26 @ 20:01:42 Sessions 3 Manual Loads 0 Difficulty Rogue Special Mode None Game No. 12 Rogue 12 Adventurer 0 Explorer 0 Win Type - Total 0 Types 0/0/0/0/0/0/0 Lore% 9 Gallery% 13 Achievement% 12 Wizard Run 0 Options --------- ASCII 0 Keyboard 0 Movement Vi Keybinds 0 Fullscreen 1 Font 18/Terminus Map View 76x50 Tactical HUD 1 Map Filters NONE Filters NONE Steam 1 RUN: 09e3687f-03fe-4573-899a-ed3d0a78476c